Cogmind - Beta 17.1 *** ADVENTURER MODE // 2026.09.18 @ 22:56:32 Player: F-forge Result: Destroyed by RL-JOZ(R) with Subdweller Laser Performance ------------- Evolutions (0) 0 Regions Visited (2) 400 Robots Destroyed (5) 25 Value Destroyed (61) 61 Prototype IDs (0) 0 Alien Tech Used (0) 0 Bonus (-3) -3 TOTAL SCORE: 483 Bonus ------- Friendly Fire -3 Cogmind --------- Core Integrity 0/250 Matter 258/300 Energy 100/100 System Corruption 0% Temperature Cool (6) Movement Hovering (80) Location -10/Subcaves Parts ------- > --- POWER (1) -------- (None) > --- PROPULSION (2) --- Combat Airjet > --- UTILITY (2) ------ Small Storage Unit Sensor Array > --- WEAPON (2) ------- Small Laser Assault Rifle > --- INVENTORY (8) ---- Cooling System Small Matter Pod (50) Improved Terrain Scanner Seismic Detector Light Armor Plating Light Armor Plating Mini Grenade Launcher Mining Laser Peak State ------------ > --- POWER ------------ Light Ion Engine > --- PROPULSION ------- Light Treads Combat Airjet > --- UTILITY ---------- Small Storage Unit Seismic Detector > --- WEAPON ----------- Small Laser Assault Rifle > --- INVENTORY -------- Light Ion Engine Light Ion Engine Small Matter Pod Improved Terrain Scanner Light Assault Rifle Mini Grenade Launcher Mining Laser [Rating: 12] Favorites ----------- Power Light Ion Engine Engine Light Ion Engine Propulsion Light Treads Treads Light Treads Leg Aluminum Leg Hover Unit Combat Airjet Utility Small Storage Unit Device Seismic Detector Storage Small Storage Unit Weapon Small Laser Energy Gun Small Laser Ballistic Gun Assault Rifle Launcher Mini Grenade Launcher Special Weapon Mining Laser Build | -11 -10 -10 ------- Run | Yrd Mat Sub Slots Evolved . | . . . Power . | . . . Propulsion . | . . . Utility . | . . . Weapon . | . . . Parts Attached 18 | 15 3 . Power 4 | 4 . . Engine 4 | 4 . . Core . | . . . Reactor . | . . . Propulsion 5 | 5 . . Treads 2 | 2 . . Leg 2 | 2 . . Wheel . | . . . Hover 1 | 1 . . Flight . | . . . Utility 5 | 4 1 . Device 4 | 3 1 . Storage 1 | 1 . . Processor . | . . . Hackware . | . . . Protection . | . . . Artifact . | . . . Weapon 4 | 2 2 . Energy Gun 1 | 1 . . Energy Cannon . | . . . Ballistic Gun 1 | 1 . . Ballistic Cannon . | . . . Launcher 1 | . 1 . Special Weapon 1 | . 1 . Impact Weapon . | . . . Slashing Weapon . | . . . Piercing Weapon . | . . . Special Melee Weapon . | . . . Unidentified Prototypes . | . . . Parts Lost 3 | 2 1 . Power 1 | . 1 . Propulsion 1 | 1 . . Utility 1 | 1 . . Weapon . | . . . Highest Loss Streak 2 | 2 1 . To Critical Strikes . | . . . Average Backups 4 | 4 7 8 Power . | . . . Propulsion 1 | 1 . . Utility 1 | 1 5 6 Weapon 1 | 1 2 2 Tool/Special . | . . . Unused Backups 6 | . 2 4 Power . | . . . Propulsion . | . . . Utility 5 | . 1 4 Weapon 1 | . 1 . Tool/Special . | . . . Average Slot Usage (%) 80 | . 83 71 Engine 9 | . 13 . Hover 14 | . 14 14 Device 14 | . 14 14 Storage 14 | . 14 14 Energy Gun 14 | . 14 14 Ballistic Gun 4 | . 1 14 Launcher 7 | . 10 . Peak Build Rating 12 | 11 12 10 Average Rating 7 | 7 11 10 On Entrance 5 | . 7 10 Avg Prop Armor Cover (%) . | . . . Naked Turns . | . . . Heaviest Build 12 | 12 11 9 Greatest Support 40 | 40 12 12 Greatest Overweight (x) 3 | 3 . . Average Overweight (x) . | . . . Largest Inventory Capacity 8 | 8 8 8 Average Capacity 7 | 7 8 8 Most Carried 8 | 8 8 8 Average Carried 4 | 4 7 8 Final Capacity 8 | 8 8 8 Final Carried 8 | 8 8 8 Class Distribution -------------------- 94% | Scavenger-Mutant 5% | Mutant Dominant Class ---------------- Mutant | -10/Materials Mutant | -10/Subcaves Resources | -11 -10 -10 ----------- Run | Yrd Mat Sub Matter Collected 558 | 508 50 . Remotely . | . . . Salvage Created 387 | 355 32 . Parts 14 | 12 2 . Haulers Intercepted . | . . . Recyclers Shooed . | . . . Parts Field Recycled . | . . . Retrieved Matter . | . . . Parts Self-Destructed 5 | . . 5 Prevented . | . . . Parts Restored . | . . . Kills | -11 -10 -10 ------- Run | Yrd Mat Sub Combat Hostiles Destroyed 15 | 14 1 . Guns 15 | 14 1 . Classes Destroyed 4 | 3 1 . Tunneler 3 | 3 . . Recycler 1 | 1 . . Grunt 1 | . 1 . Assembled 14 | 14 . . Best Kill Streak 4 | 4 1 . Combat Bots Only 4 | 4 1 . Max Kills in Single Turn 1 | 1 1 . Gunslinging . | . . . Exploded . | . . . Melee . | . . . Uniques/NPCs Destroyed . | . . . Combat | -11 -10 -10 -------- Run | Yrd Mat Sub Hostile Shots Fired 69 | 49 13 7 Missed 22 | 14 3 5 Hits 47 | 35 10 2 Melee 4 | 4 . . Projectile 43 | 31 10 2 AOE 6 | 6 . . Critical Strikes 2 | 1 1 . Part Disruptions 1 | 1 . . Damage Taken 747 | 553 163 31 Core 258 | 197 45 16 Absorbed by Shields . | . . . Ignored by Resistances 211 | 157 46 8 Regen/Repaired (Parts) 42 | . 42 . Core Remaining (%) 21 | 21 . . Volleys Fired 64 | 46 15 3 Largest 2 | 2 2 2 Hottest 100 | 60 100 60 Shots Fired 119 | 92 22 5 Gun 117 | 92 20 5 Cannon . | . . . Launcher 1 | . 1 . Special 1 | . 1 . Kinetic 55 | 46 6 3 Thermal 63 | 46 15 2 Explosive 1 | . 1 . Electromagnetic . | . . . Robot Hit Streak 22 | 9 18 22 Robot Miss Streak 3 | 3 1 1 Penetration Max . | . . . Secondary Targets 2 | 2 . . Max Gunslinging Chain 1 | 1 . . Shots Hit Robots 88 | 64 20 4 Core Hits 46 | 39 6 1 Critical Kills . | . . . Critical Parts Destroyed 1 | 1 . . Critical Strikes 1 | 1 . . Destroy 1 | 1 . . Melee Attacks . | . . . Impact . | . . . Slashing . | . . . Piercing . | . . . Sneak Attacks . | . . . Combat Hostiles . | . . . Follow-up Attacks . | . . . Damage Inflicted 1037 | 774 240 23 Guns 1007 | 774 210 23 Cannons . | . . . Explosions 30 | . 30 . Melee . | . . . Ramming . | . . . Kinetic 470 | 389 68 13 Thermal 537 | 385 142 10 Explosive 30 | . 30 . Electromagnetic . | . . . Impact . | . . . Slashing . | . . . Piercing . | . . . Highest Corruption . | . . . Average Corruption . | . . . Corruption Purged . | . . . Corruption Blocked . | . . . Overload Shots . | . . . Overflow Damage . | . . . Projectiles . | . . . Explosions . | . . . Melee . | . . . Knockbacks . | . . . Impact . | . . . Kinetic . | . . . Secondary . | . . . Self-Inflicted Damage 31 | . 31 . Shots 1 | . 1 . Rammed . | . . . Targets Rammed . | . . . Kicked . | . . . Crushed . | . . . Highest Temperature 100 | 100 76 . Average Temperature 41 | 45 34 . Received Heat Transfer 426 | 300 114 12 Siege Activations . | . . . Martial Activations . | . . . Shielding Activations . | . . . Robots Disrupted . | . . . Combat Hostiles . | . . . Robots Corrupted . | . . . Combat Hostiles . | . . . Parts Fried . | . . . Impact Corruptions . | . . . Robots Melted . | . . . Combat Hostiles . | . . . Parts Melted . | . . . Heat Transferred 1225 | 875 325 25 Parts Sabotaged . | . . . Parts Stolen . | . . . Parts Stripped . | . . . Power Chain Reactions . | . . . Alert | -11 -10 -10 ------- Run | Yrd Mat Sub Maximum Alert Level . | . . . Low Security (%) 100 | 100 100 . Level 1 . | . . . Level 2 . | . . . Level 3 . | . . . Level 4 . | . . . Level 5 . | . . . High Security . | . . . Max Security . | . . . Peak Influence 61 | 5 61 . Initial . | . . . Average . | . 9 . Influence Increases 128 | 20 108 . Destroy 0b10 Robot/C 20 | . 20 . Destroy 0b10 Robot/NC 20 | 20 . . Successful Hack 4 | . 4 . Destroy Structure 9 | . 9 . Lose Combat Pursuer 75 | . 75 . Influence Decreases 128 | 20 72 36 Entered New Map 21 | . . 21 Time Decay 97 | 20 62 15 Lost Part 10 | . 10 . Squads Dispatched 3 | . 3 . Investigation 3 | . 3 . Extermination . | . . . Reinforcement . | . . . Assault . | . . . Garrison . | . . . Intercept . | . . . Searches Triggered . | . . . Construction Impeded . | . . . Haulers Reinforced . | . . . Active Scanning Responses . | . . . Cargo Convoy Interrupts . | . . . Stealth | -11 -10 -10 --------- Run | Yrd Mat Sub Distress Signals 1 | . 1 . Communications Jammed . | . . . Distress Signals . | . . . Times Spotted 33 | 20 9 4 Peak Tracking Total 4 | 3 4 2 Tactical Retreats 4 | 2 2 . Traps | -11 -10 -10 ------- Run | Yrd Mat Sub Traps Triggered 1 | . 1 . Indirectly . | . . . Trap Hack Attempts . | . . . Triggered . | . . . Disarmed 3 | . 3 . Reprogrammed . | . . . Reused . | . . . Traps Extracted . | . . . Installed . | . . . Triggered . | . . . Machines | -11 -10 -10 ---------- Run | Yrd Mat Sub Machines Disabled . | . . . Max in Single Turn . | . . . Machines Repaired . | . . . Machines Dismantled . | . . . Machines Sabotaged . | . . . Overloaded Fab Kills . | . . . Hacking | -11 -10 -10 --------- Run | Yrd Mat Sub Machines Accessed 4 | . 4 . Terminals 3 | . 3 . Fabricators . | . . . Repair Stations 1 | . 1 . Recycling Units . | . . . Scanalyzers . | . . . Garrison Access . | . . . Total Hacks 13 | . 13 . Successful 7 | . 7 . Failed 6 | . 6 . Catastrophic 1 | . 1 . Database Lockouts . | . . . Manual 10 | . 10 . Terminals 10 | . 10 . Fabricators . | . . . Repair Stations 3 | . 3 . Recycling Units . | . . . Scanalyzers . | . . . Garrison Access . | . . . Terminal Hacks 3 | . 3 . Locate Traps 1 | . 1 . Disarm Traps 1 | . 1 . Recall Investigation 1 | . 1 . Fabricator Hacks . | . . . Repair Station Hacks 2 | . 2 . Scan Component 1 | . 1 . Repair 1 | . 1 . Recycling Unit Hacks . | . . . Scanalyzer . | . . . Garrison Access Hacks . | . . . Unauthorized Hacks 2 | . 2 . Terminals 2 | . 2 . Botnet 2 | . 2 . Fabricators . | . . . Repair Stations . | . . . Recycling Units . | . . . Scanalyzers . | . . . Garrison Access . | . . . Data Cores Recovered . | . . . Used . | . . . Hacking Detections 3 | . 3 . Full Trace Events 1 | . 1 . Feedback Events . | . . . Feedback Blocked . | . . . Robot Schematics Acquired . | . . . Robots Built . | . . . Authchips . | . . . Time . | . . . Total Robot Build Rating . | . . . Part Schematics Acquired . | . . . Parts Built . | . . . Authchips . | . . . Time . | . . . Total Part Build Rating . | . . . Part Studies Acquired . | . . . Parts Repaired 1 | . 1 . Time 32 | . 32 . Parts Recycled . | . . . Recycled Matter . | . . . Retrieved Matter . | . . . Retrieved Components . | . . . Parts Scanalyzed . | . . . Part Schematics Acquired . | . . . Parts Damaged . | . . . Bothacking | -11 -10 -10 ------------ Run | Yrd Mat Sub Used RIF Installer . | . . . Robots Hacked . | . . . Non-combat . | . . . Combat . | . . . Robot Hacks Applied . | . . . Relay Couplers Released . | . . . Fabnet Peak Effective % . | . . . Robots Rewired . | . . . Allies Hacked . | . . . Hacks Repelled . | . . . Allies | -11 -10 -10 -------- Run | Yrd Mat Sub Total Allies . | . . . Largest Group . | . . . Highest-Rated Group . | . . . Highest-Rated Ally . | . . . Total Orders . | . . . Ally Attacks . | . . . Total Damage . | . . . Kills . | . . . Allies Corrupted . | . . . Allies Melted . | . . . Intel | -11 -10 -10 ------- Run | Yrd Mat Sub Active Infowar (turns) 6669 | 6121 387 161 Sensors 369 | . 208 161 Terrain 537 | 537 . . Seismic 5763 | 5584 179 . Robot Analysis Total . | . . . Derelict Logs Recovered 1 | . . 1 Drone Launches . | . . . Drone Recoveries . | . . . Exploration | -11 -10 -10 ------------- Run | Yrd Mat Sub Turns Passed 7284 | 6736 387 161 Spaces Moved 2153 | 1619 354 180 Core 15 | 15 . . Treads 1426 | 1426 . . Legs 28 | 28 . . Wheels . | . . . Hover 684 | 150 354 180 Flight . | . . . Fastest Speed 50 | 50 80 80 Average Speed 133 | 151 80 80 Slowest Speed 200 | 200 80 80 Overloaded Moves . | . . . Propulsion Burnouts . | . . . Robots Hopped . | . . . Potential Cave-ins . | . . . Cave-ins Triggered . | . . . Exploration Rate (%) 48 | 79 50 15 Regions Visited 2 Branch Regions 1 Pre-discovered Areas 1 | . . 1 Known Exits Taken . | . . . Unknown Exits Taken 2 | 1 1 . Scrap Searched . | . . . Spaces Dug 1 | . 1 . Terrain Destroyed 8 | . 8 . Melee . | . . . Projectile 1 | . 1 . AOE 7 | . 7 . Terrain Rammed . | . . . Walls Destroyed . | . . . Machines Disabled . | . . . Actions | -11 -10 -10 --------- Run | Yrd Mat Sub Total 6433 | 5807 434 192 Wait 4164 | 4106 49 9 Move 2151 | 1618 353 180 Hop . | . . . Pick Up 20 | 15 5 . Fast Attach 2 | 1 1 . Attach 9 | 8 1 . Detach 2 | 1 1 . Swap 13 | 9 4 . Drop 8 | 3 5 . Fire 64 | 46 15 3 Melee . | . . . Ram . | . . . Kick . | . . . Crush . | . . . Escape Stasis . | . . . Rewire . | . . . Trap . | . . . Miscellaneous . | . . . Route ------- -11/Scrapyard -10/Materials (discovered 2 exits: [*Mat] / [*Sub]) -10/Subcaves History --------- Turn | Location | Event 32 | -11/Scrapyard | Discovered new exit (range 15) 5554 | -11/Scrapyard | Assembled infested the area 6261 | -11/Scrapyard | Core integrity fell below 50% 6737 | -11/Scrapyard | Entered Materials 6738 | -10/Materials | Met a group of wandering Federalists 6787 | -10/Materials | Build established: Scavenger-Mutant 6792 | -10/Materials | Core integrity fell below 20% 6893 | -10/Materials | Repaired Mni. Grenade Launcher 6925 | -10/Materials | Discovered new exit (range 7) 6935 | -10/Materials | Discovered new exit (range 15) 7124 | -10/Materials | Entered Subcaves 7125 | -10/Subcaves | Continued accompanying wandering Federalists (4) 7125 | -10/Subcaves | Approached by a straggling Scientist 7188 | -10/Subcaves | Learned location of Zion (-6) 7188 | -10/Subcaves | Met a Zionite searching for "candidates" 7217 | -10/Subcaves | Shifting Twisted Machinery released Sub. Power Source 7218 | -10/Subcaves | Build established: Mutant 7235 | -10/Subcaves | Shifting Twisted Machinery released Sub. Shrapnel Launcher 7281 | -10/Subcaves | Learned Materials emergency access door positions 7285 | -10/Subcaves | Destroyed by RL-JOZ(R) with Subdweller Laser Last Messages --------------- 07135_ G-34 Mercenary destroyed. 07167_ J7-U9R(g): "We could head over to Recycling and return via the Scraplab, but it would be faster if we could just find that shortcut." 0Q-ZCP(c): "I think it's somewhere northwest of here" 07187_ 28-8TD(z): "She is not going to be happy we haven't found any suitable candidates yet." 07188_ 28-8TD(z): "Hey you! It's really dangerous down here, I feel that you could die at any moment. For your health and safety might I suggest a trip to Zion?" World map updated: -6/Zion. Sub. Power Source falls loose from the Twisted Machinery. 0Q-ZCP(c): "I think it's somewhere north of here" Sub. Shrapnel Launcher falls loose from the Twisted Machinery. 0Q-ZCP(c): "I think it's somewhere north of here" 07281_ Acquired derelict log, extracted data. Data stored: Materials emergency access points. Map ----- +----------------------------------------------------+ | ?????????????????????????????????????????????????? | | ?????????????????????????????????????????????????? | | ?????????????????????????????????????????????????? | | ?????????????????????????????????????????????????? | | ?????????????????????????????????????????????????? | | ?????????????????????????????????????????????????? | | ?????????????????????????????????????????????????? | | ?????????????????????????????????????????????????? | | ?????????????????????????????????????????????????? | | ?????????????????????????????????????????????????? | | ?????????????????????????????????????????????????? | | ?????????????????????????????????????????????????? | | ?????????????????????????????????????????????????? | | ?????????????????????????????????????????????????? | | ?????????????????????????????????????????????????? | | ????????????????????????????#????????????????????? | | ?????????????????????###??? ##???????????????????? | | ?????????????????????# #### #???????????????????? | | ?????????????#???????# ## ?##??????????????????? | | ???????????? #???????# ### ##?????????????????? | | ????????#### #???????# ##????????????????? | | ????????# "#?####### ### #????????????????? | | ??????#### ###?# # #?????????????????? | | ??????# " "##### #??????????????????? | | ??????# R c #??????????????????? | | ??????## # @ #??????????????????? | | ???????## #### ## ##??????????????????? | | ????????# ##### # ##???????????????????? | | ????????#### #?# ## #??????????????????## | | ???????????## ## ### ##?????????????????## | | ???????????# #### ## ###??????????????????# | | ???????????## #??## # ###????????????????????# | | ???????????? #??## ### #??????????????????????# | | ???????????? #??# ## ##??????????????????????# | | ??????????? ##??## ##??????????????????????? | | ??????????? ?????# #?????????????????##???? | | ??????????? #?????## " #????????????##### ##??? | | ?????????? #???????# "" #????????????# ##?? | | ?????????? ???????## " ###????????????# ### | | ?????????? ???????# #??????????????# ## | | ?????????#????????#"" ##?????????###### #?# | | ????????????????#"#" #####???#### # # #### | | ???????????????"""""" ##??# # | | ?????????????? "" """ #### | | ??????????????# """ """" # # ### | | ??????????????##"]"" """" ##?##### ### | | ???????????????# *"##"""### ##??????######?? | | ???????????????# ?#" #?## #####??????????????? | | ???????????????# " ?#"" #??###??????????????????? | | ???????????????# ?#"?#####???????????????????????? | +----------------------------------------------------+ Best States ------------- Heat Dissipation 25 Energy Generation 10 Energy Capacity 125 Matter Stores 300 Matter Capacity 300 Sight Range 16 Robot Scan Range 14 Terrain Scan Range 16 Terrain Scan Density 10 Resistance: KI 20 Resistance: TH 20 Resistance: EX 20 Resistance: EM 20 Resistance: I 20 Resistance: S 20 Resistance: P 20 Evasion (%) 55 Recoil Reduction 2 Offensive Hacking 10 Item Schematics ----------------- None Robot Schematics ------------------ None Fabricated ------------ Nothing Repaired ---------- Mni. Grenade Launcher | 16% | -10/Materials Studied --------- None Alien Tech Used ----------------- None Achievements -------------- None Challenges ------------ None Game ------ Seed ArcCarbideChargecaster Manual? 0 Play Time 00:23:53 Cumulative 126.2 hours Start 2026.09.18 @ 22:30:41 End 2026.09.18 @ 22:56:32 Sessions 1 Manual Loads 0 Difficulty Adventurer Special Mode None Game No. 59 Rogue 0 Adventurer 59 Explorer 0 Win Type - Total 1 Types 1/0/0/0/0/0/0/0/0/0 Lore% 51 Gallery% 42 Achievement% 39 Wizard Run 0 Options --------- Layout 2 ASCII 0 Keyboard 0 Movement Arrows Keybinds 0 Fullscreen 1 Font 16/Terminus Map View 55x47 Zoom Use 7% Tactical HUD 1 Map Filters NONE Filters NONE Steam 1 RUN: 31706788-0ac5-4766-b4f6-4aa9b6621aa2